bitfinex/quotes_ETHUSD_20240630
["timestamp","ask_amount","ask_price","bid_price","bid_amount"]
[1719782322877,2.4104,3419.0,3418.5,0.6409524]
[1719782323096,2.4104,3419.0,3418.6,0.26579524]
[1719782323260,2.4104,3419.0,3418.7,0.55]
[1719782323593,2.4104,3419.0,3418.7,0.58236106]
[1719782324973,3.0,3419.6,3418.7,0.58236106]
[1719782325174,0.58961482,3419.7,3418.7,0.58236106]
[1719782325776,0.40564819,3420.0,3418.7,0.58236106]
[1719782325969,3.0,3420.3,3418.7,0.58236106]
[1719782326168,3.40564819,3420.3,3418.7,0.58236106]
[1719782326529,0.40564819,3420.2,3418.7,0.58236106]
[1719782326847,0.40564819,3420.2,3418.5,0.55]
[1719782327142,1.07256482,3420.1,3418.6,0.09087949]
[1719782327373,1.07256482,3420.1,3418.7,0.55]
[1719782327889,1.07256482,3420.1,3418.8,0.03228896]
[1719782328479,1.07256482,3420.1,3418.5,0.55]
[1719782328690,0.4478213,3420.0,3418.9,0.03224124]
[1719782328894,0.4478213,3420.0,3418.7,0.55]
[1719782329195,0.4478213,3420.0,3418.8,0.03228896]
[1719782329600,0.40564819,3420.2,3418.8,0.03228896]
[1719782330960,0.40564819,3420.2,3418.5,0.55]
[1719782331280,0.40564819,3420.2,3418.6,0.03238442]
[1719782331611,0.2106248,3420.1,3418.6,0.03238442]
[1719782331782,0.40564819,3420.0,3418.6,0.03238442]
[1719782332964,3.9368552,3420.6,3418.6,0.29232286]
[1719782333169,0.40564819,3420.4,3418.6,0.29232286]
[1719782333369,0.21064144,3420.3,3418.6,0.29232286]
[1719782333836,0.61628963,3420.3,3418.6,0.29232286]
[1719782333976,0.40564819,3420.3,3418.6,0.29232286]
[1719782334312,0.21064286,3420.2,3418.6,0.29232286]
[1719782334532,0.40564819,3420.3,3418.6,0.29232286]
[1719782334897,0.21064151,3420.2,3418.6,0.29232286]
[1719782335577,0.40564819,3420.3,3418.6,0.29232286]
[1719782336318,2.3455,3420.2,3418.7,2.3272]
[1719782336521,0.27511482,3420.1,3418.7,2.3272]
[1719782336686,3.27511482,3420.1,3418.8,0.03266324]
[1719782337829,0.84,3419.9,3418.9,0.84]
[1719782338422,3.84,3419.9,3419.0,0.03256098]
[1719782339619,0.84,3419.5,3419.0,0.03256098]
[1719782340218,2.3697,3419.3,3418.7,2.3272]
[1719782340744,2.3697,3419.3,3418.8,0.03266746]
[1719782340876,2.3697,3419.3,3418.7,2.3272]
[1719782340877,0.384,3419.4,3418.7,3.1672]
[1719782341234,0.384,3419.4,3418.8,0.03268177]
[1719782341523,0.384,3419.4,3418.7,3.1672]
[1719782341882,0.384,3419.4,3418.8,0.03268177]
[1719782343310,0.3384,3419.3,3418.7,2.3272]
[1719782343523,0.3384,3419.3,3418.9,0.03265339]
[1719782343723,0.3384,3419.3,3418.8,0.03270452]
[1719782344015,0.3384,3419.3,3418.9,0.03265339]
[1719782344425,0.3384,3419.3,3418.7,2.3272]
[1719782344596,0.3384,3419.3,3419.0,0.03260226]
[1719782344799,0.3384,3419.3,3418.7,2.3272]
[1719782345001,0.3384,3419.3,3419.1,0.03255113]
[1719782345209,0.3384,3419.3,3418.7,2.3272]
[1719782345392,0.384,3419.4,3419.2,0.03250001]
[1719782345713,0.384,3419.4,3418.7,2.3272]
[1719782346228,0.384,3419.4,3418.8,0.03270452]
[1719782358603,3.0,3419.6,3418.9,2.4528]
[1719782358906,3.84,3419.9,3418.9,2.4528]
[1719782359211,2.4031,3419.8,3419.0,0.03260139]
[1719782359367,5.4031,3419.8,3419.0,0.03260139]
[1719782359701,0.92431,3419.7,3419.0,0.03260139]
[1719782359850,3.92431,3419.7,3419.0,0.03260139]
[1719782360291,3.92431,3419.7,3418.9,2.4528]
[1719782360487,3.92431,3419.7,3419.1,0.03255026]
[1719782360791,3.92431,3419.7,3419.2,0.03249914]
[1719782360979,0.716741,3419.6,3419.2,0.03249914]
[1719782361291,0.716741,3419.6,3418.9,2.4528]
[1719782361511,0.716741,3419.6,3419.3,0.03244801]
[1719782361798,0.716741,3419.6,3419.4,0.03239689]
[1719782362154,0.716741,3419.6,3418.9,2.4528]
[1719782362355,0.716741,3419.6,3419.0,0.03260139]
[1719782362674,0.6119841,3419.5,3419.0,0.03260139]
[1719782363486,0.6119841,3419.5,3419.1,2.4528]
[1719782363696,9.99821482,3420.1,3419.1,2.4528]
[1719782363697,0.84,3419.9,3419.1,2.4528]
[1719782363901,0.84,3419.9,3419.2,0.03249914]
[1719782365001,3.0,3420.0,3419.2,0.03249914]
[1719782365202,3.0,3420.0,3419.3,2.4528]
[1719782365402,0.27511482,3420.1,3419.3,2.4528]
[1719782365599,0.4520763,3420.0,3419.4,0.03238173]
[1719782365765,0.4520763,3420.0,3419.5,2.4528]
[1719782365969,0.4520763,3420.0,3419.6,0.03227951]
[1719782368091,0.27511482,3420.1,3419.6,0.03227951]
[1719782368289,3.0,3420.3,3419.6,0.03227951]
[1719782368290,0.84,3420.3,3419.6,0.03227951]
[1719782368693,0.84,3420.3,3419.5,2.4528]
[1719782369369,0.84,3420.1,3419.5,2.4528]
[1719782369614,0.40564819,3420.4,3419.5,2.4528]
[1719782369799,0.93622489,3420.5,3419.7,2.4584]
[1719782370331,7.32,3420.6,3419.8,0.03745273]
[1719782370614,0.84,3420.5,3419.7,2.4584]
[1719782370982,3.84,3420.5,3419.7,2.4584]
[1719782371187,0.84,3420.5,3419.7,2.4584]
[1719782381292,1.224,3420.5,3419.7,2.4584]
[1719782384322,3.0,3420.8,3419.7,2.4584]
[1719782384532,3.84,3420.7,3419.7,2.4584]
[1719782384824,0.84,3420.7,3419.7,2.4584]
[1719782385018,0.84,3420.5,3419.7,2.4584]
[1719782385620,0.84,3420.6,3419.7,2.4584]
[1719782385881,1.224,3420.6,3419.7,2.4584]
[1719782386023,0.84,3420.6,3419.7,2.4584]
[1719782386189,3.84,3420.6,3419.7,2.4584]
[1719782388130,0.84,3420.6,3419.7,2.4584]
[1719782391057,0.84,3420.4,3419.7,2.4584]
[1719782391422,0.84,3420.4,3419.8,0.04424963]
[1719782391639,0.84,3420.4,3419.7,2.4584]
[1719782401012,0.84,3420.6,3419.7,2.4584]
[1719782403332,1.35420248,3420.6,3419.7,2.4584]
[1719782417826,3.0,3420.8,3419.7,3.2984]
[1719782417977,4.05048957,3420.7,3419.8,2.4234]
[1719782418174,0.84,3420.7,3419.8,2.47015354]
[1719782430562,4.30202482,3420.9,3419.8,2.47015354]
[1719782430855,0.84,3420.7,3419.8,2.47015354]
[1719782431832,0.84,3420.7,3419.8,2.48810609]
[1719782433939,0.84,3420.5,3419.8,2.48810609]
[1719782434975,3.84,3420.6,3419.8,2.48810609]
[1719782435172,0.44039347,3420.5,3419.8,2.4234]
[1719782435471,0.84,3420.6,3420.0,2.271]
[1719782443922,4.40393471,3420.8,3420.0,2.271]
[1719782444196,3.56393471,3420.8,3420.0,2.271]
[1719782444366,1.40393471,3420.8,3420.0,2.271]
[1719782444573,3.0,3420.7,3420.1,0.06447513]
[1719782444817,3.0,3420.7,3420.2,2.3556]
[1719782444968,4.40393471,3420.8,3420.2,2.3556]
[1719782445509,4.40393471,3420.8,3420.3,0.06437761]
[1719782446506,3.84,3420.8,3420.4,2.3185]
[1719782446660,0.84,3420.8,3420.4,2.3185]
[1719782451629,3.84,3420.8,3420.4,2.3185]
[1719782451799,0.84,3420.8,3420.4,2.3185]
[1719782457317,3.93721803,3421.1,3420.4,2.3185]
[1719782457595,7.32,3421.2,3420.6,2.4399]
[1719782457817,0.93721803,3421.3,3420.6,2.4399]
[1719782458323,0.84,3421.2,3420.7,0.06416388]
[1719782458908,0.84,3421.2,3420.6,2.4399]
[1719782459314,3.0,3421.5,3420.6,2.76789]
[1719782459630,0.84,3421.4,3420.7,0.06415218]
[1719782459790,0.84,3421.4,3420.8,2.4613]
[1719782463431,3.0,3421.7,3420.8,2.4613]
[1719782463773,0.84,3421.5,3420.8,2.4613]
[1719782469363,0.84,3421.3,3420.8,2.4613]
[1719782474513,0.57431482,3421.6,3420.8,2.4613]
[1719782474714,0.84,3421.4,3420.8,2.4613]
[1719782479526,0.84,3421.5,3420.8,2.4613]
[1719782479714,1.4717463,3421.5,3420.8,2.4613]
[1719782494826,0.6317463,3421.5,3420.8,2.4613]
[1719782495022,0.84,3421.6,3420.8,2.4613]
[1719782501250,3.0,3421.7,3420.8,2.4613]
[1719782501395,3.84,3421.7,3420.8,2.4613]
[1719782501752,0.84,3421.5,3420.8,2.4613]
[1719782505417,3.0,3421.7,3420.8,2.4613]
[1719782505627,1.6250649,3421.6,3420.8,2.4613]
[1719782505825,0.21075008,3421.5,3420.8,2.4613]
[1719782509377,0.57431482,3421.6,3420.8,2.4613]
[1719782509547,1.41431482,3421.6,3420.8,2.4613]
[1719782518009,4.41431482,3421.6,3420.8,2.4613]
[1719782518189,1.41431482,3421.6,3420.8,2.4613]
[1719782518394,0.84,3421.6,3420.8,2.4613]
[1719782518905,0.84,3421.8,3420.8,2.4613]
[1719782519098,0.21072612,3421.7,3420.8,2.4613]
[1719782520805,0.21073375,3421.6,3420.8,2.4613]
[1719782521108,0.84,3421.8,3420.8,2.4613]
[1719782521266,0.68856414,3421.7,3420.8,2.4613]
[1719782521469,0.21076082,3421.6,3420.8,2.4613]
[1719782523268,0.47780332,3421.7,3420.8,2.4613]
[1719782523466,0.21076605,3421.6,3420.8,2.4613]
[1719782523909,0.47780332,3421.7,3420.8,2.4613]
[1719782524216,3.93803323,3422.0,3420.8,2.79727552]
[1719782524429,0.21077513,3421.9,3420.9,0.05845983]
[1719782524569,7.32,3422.1,3421.2,0.84]
[1719782524916,7.32,3422.1,3421.3,2.3851]
[1719782525072,1.77803323,3422.2,3421.3,2.44835959]
[1719782525272,1.77803323,3422.2,3421.3,2.3851]
[1719782525481,2.22786137,3422.2,3421.5,2.3851]
[1719782525933,2.22786137,3422.2,3421.6,0.06311341]
[1719782526102,0.44982814,3422.2,3421.6,0.06311341]
[1719782526297,0.44982814,3422.2,3421.7,2.3851]
[1719782526510,0.84,3422.2,3421.7,2.3851]
[1719782526719,0.84,3422.2,3421.8,0.06301598]
[1719782527029,0.84,3422.2,3421.7,2.3851]
[1719782527185,0.84,3422.3,3421.7,2.3851]
[1719782529015,0.40564819,3422.5,3421.7,2.3851]
[1719782529378,1.24564819,3422.5,3421.7,2.3851]
[1719782529581,1.24564819,3422.5,3421.7,2.62945462]
[1719782530330,0.84,3422.5,3421.7,2.62945462]
[1719782530627,0.84,3422.5,3421.7,2.3851]
[1719782543901,0.40564819,3422.8,3421.7,3.2251]
[1719782544109,0.84,3422.7,3421.8,2.4925]
[1719782547475,0.84,3422.6,3421.8,2.4925]
[1719782551509,0.84,3422.6,3421.9,0.06284903]
[1719782551716,0.84,3422.6,3421.8,2.4925]
[1719782555498,1.20725829,3422.6,3421.8,2.4925]
[1719782556310,0.84,3422.6,3421.8,2.4925]
[1719782570396,0.84,3422.6,3421.9,0.06285447]
[1719782570615,0.84,3422.7,3422.0,2.278]
[1719782579813,0.84,3422.7,3422.1,0.06275785]
[1719782580400,0.84,3422.7,3422.0,2.278]
[1719782580768,3.0,3422.9,3422.0,2.278]
[1719782580973,2.71432502,3422.8,3422.0,2.278]
[1719782581204,3.2110605,3422.7,3422.0,2.278]
[1719782581476,3.0,3422.7,3422.0,2.278]
[1719782582213,4.66326452,3422.8,3422.0,2.278]
[1719782582372,0.21104601,3422.7,3422.0,2.278]
[1719782583128,3.21104601,3422.7,3422.0,2.278]
[1719782583320,0.21104601,3422.6,3422.0,2.278]
[1719782583690,3.0,3422.7,3422.0,2.278]
[1719782583904,1.66326452,3422.8,3422.0,2.278]
[1719782584111,0.21102231,3422.7,3422.0,2.278]
[1719782585212,3.21102231,3422.7,3422.0,2.278]
[1719782585412,0.21102231,3422.6,3422.0,2.278]
[1719782585798,3.0,3422.7,3422.0,2.278]
[1719782586046,0.21103255,3422.6,3422.0,2.278]
[1719782586342,3.0,3422.7,3422.0,2.278]
[1719782588146,0.21105263,3422.6,3422.0,2.278]
[1719782588342,3.92320196,3423.0,3422.1,0.05844112]
[1719782588512,0.21106781,3422.9,3422.1,2.55034112]
[1719782588711,3.92320196,3423.0,3422.3,2.4919]
[1719782589131,3.92320196,3423.0,3422.4,0.06258608]
[1719782589311,3.92320196,3423.0,3422.5,2.4919]
[1719782589567,3.00699,3423.0,3422.5,2.55442338]
[1719782590087,3.0,3422.9,3422.5,2.55442338]
[1719782590291,3.0,3422.9,3422.5,2.4919]
[1719782591286,3.00699,3423.0,3422.6,2.4919]
[1719782591491,3.00699,3423.0,3422.6,2.55436147]
[1719782620549,3.00699,3423.0,3422.6,2.4919]
[1719782621064,3.00699,3423.0,3422.7,0.0623078]
[1719782621227,3.00699,3423.0,3422.6,2.4919]
[1719782621429,3.00699,3423.0,3422.6,2.850009]
[1719782621759,3.00699,3423.0,3422.7,0.0623078]
[1719782621942,3.00699,3423.0,3422.6,2.850009]
[1719782622142,3.00699,3423.0,3422.7,0.0623078]
[1719782622382,3.00699,3423.0,3422.6,2.850009]
[1719782622531,3.00699,3423.0,3422.8,0.06225911]
[1719782622865,3.00699,3423.0,3422.6,2.850009]
[1719782623069,3.00699,3423.0,3422.9,0.06221043]
[1719782623444,3.00699,3423.0,3422.6,2.4919]
[1719782623802,3.00699,3423.0,3422.6,2.82509]
[1719782624070,3.00699,3423.0,3422.7,0.0623078]
[1719782624472,3.00699,3423.0,3422.6,2.82509]
[1719782624834,3.00699,3423.0,3422.7,0.0623078]
[1719782625260,3.00699,3423.0,3422.6,2.82509]
[1719782625459,3.00699,3423.0,3422.8,0.06225911]
[1719782625673,3.00699,3423.0,3422.7,0.0623078]
[1719782625875,3.00699,3423.0,3422.9,0.06221043]
[1719782626350,3.00699,3423.0,3422.6,2.82509]
[1719782626546,3.00699,3423.0,3422.7,0.0623078]
[1719782627076,3.00699,3423.0,3422.6,2.82509]
[1719782627258,3.00699,3423.0,3422.8,0.06225911]
[1719782627470,3.00699,3423.0,3422.6,2.4919]
[1719782627689,3.00699,3423.0,3422.6,2.82509]
[1719782627849,3.00699,3423.0,3422.7,0.0623078]
[1719782628377,3.00699,3423.0,3422.8,0.06225911]
[1719782628765,3.00699,3423.0,3422.6,2.82509]
[1719782628954,3.00699,3423.0,3422.9,0.06221043]
[1719782629161,3.00699,3423.0,3422.6,2.4919]
[1719782629453,3.00699,3423.0,3422.7,0.3954978]
[1719782632284,3.00699,3423.0,3422.7,0.0623078]
[1719782632783,3.00699,3423.0,3422.3,2.3397]
[1719782633141,3.00699,3423.0,3422.4,0.06245468]
[1719782633371,3.00699,3423.0,3422.3,2.3397]
[1719782633883,3.00699,3423.0,3422.4,0.06245468]
[1719782634188,3.00699,3423.0,3422.4,0.38667015]
[1719782642281,3.00699,3423.0,3422.4,1.22667015]
[1719782643106,3.00699,3423.0,3422.4,0.38667015]
[1719782643399,2.3781,3422.9,3422.2,0.84]
[1719782643906,2.3781,3422.9,3422.3,0.06177547]
[1719782649137,2.3781,3422.9,3422.4,0.84]
[1719782654000,3.00699,3423.0,3422.4,3.1646]
[1719782655833,3.00699,3423.0,3422.5,0.06167807]
[1719782656033,3.00699,3423.0,3422.4,3.1646]
[1719782656396,3.00699,3423.0,3422.4,0.84]
[1719782656598,3.00699,3423.0,3422.5,0.06167807]
[1719782657006,3.00699,3423.0,3422.2,2.3246]
[1719782657245,3.00699,3423.0,3422.4,0.84]
[1719782657620,3.00699,3423.0,3422.5,0.06167807]
[1719782669848,3.00699,3423.0,3422.3,1.07246]
[1719782670451,3.00699,3423.0,3422.4,0.0617229]
[1719782676024,3.00699,3423.0,3422.5,2.2575]
[1719782676224,3.00699,3423.0,3422.5,2.59666829]
[1719782676431,3.00699,3423.0,3422.6,0.06162551]
[1719782676968,3.00699,3423.0,3422.5,3.0975]
[1719782677270,3.00699,3423.0,3422.7,0.06157682]
[1719782677438,3.00699,3423.0,3422.6,0.06162551]
[1719782677766,3.00699,3423.0,3422.5,3.0975]
[1719782677969,3.00699,3423.0,3422.7,0.06157682]
[1719782678139,3.00699,3423.0,3422.5,3.0975]
[1719782678325,3.00699,3423.0,3422.8,0.06152813]
[1719782678666,3.00699,3423.0,3422.5,3.0975]
[1719782679168,3.00699,3423.0,3422.6,0.06162551]
[1719782679365,3.00699,3423.0,3422.5,3.0975]
[1719782679568,3.00699,3423.0,3422.7,0.06157682]
[1719782679813,3.00699,3423.0,3422.5,3.0975]
[1719782680238,3.00699,3423.0,3422.6,0.06162551]
[1719782680637,3.00699,3423.0,3422.5,3.0975]
[1719782680841,3.00699,3423.0,3422.5,2.2575]
[1719782681043,3.00699,3423.0,3422.6,0.06162551]
[1719782681239,3.00699,3423.0,3422.5,2.2575]
[1719782681659,3.00699,3423.0,3422.6,0.06162551]
[1719782681841,3.00699,3423.0,3422.5,2.2575]
[1719782682578,3.00699,3423.0,3422.6,0.06162551]
[1719782682760,3.00699,3423.0,3422.5,2.2575]
[1719782682937,3.00699,3423.0,3422.7,0.06157682]
[1719782683276,3.00699,3423.0,3422.5,2.2575]
[1719782683662,3.00699,3423.0,3422.6,0.06162551]
[1719782684073,3.00699,3423.0,3422.5,2.2575]
[1719782684400,3.00699,3423.0,3422.6,0.06162551]
[1719782684715,3.00699,3423.0,3422.5,2.2575]
[1719782685074,3.00699,3423.0,3422.7,0.06157682]
[1719782685270,3.00699,3423.0,3422.6,0.06162551]
[1719782685471,3.00699,3423.0,3422.5,2.2575]
[1719782685882,3.00699,3423.0,3422.6,0.06162551]
[1719782686202,3.00699,3423.0,3422.5,2.2575]
[1719782686501,3.00699,3423.0,3422.6,0.06162551]
[1719782686893,3.00699,3423.0,3422.5,2.2575]
[1719782687267,3.00699,3423.0,3422.6,0.06162241]
[1719782687675,3.00699,3423.0,3422.5,2.2575]
[1719782687875,3.00699,3423.0,3422.7,0.06157372]
[1719782688097,3.00699,3423.0,3422.6,0.06162241]
[1719782688290,3.00699,3423.0,3422.5,2.2575]
[1719782688692,3.00699,3423.0,3422.6,0.06162241]
[1719782689082,3.00699,3423.0,3422.5,2.2575]
[1719782689602,3.00699,3423.0,3422.6,0.06162241]
[1719782689810,3.00699,3423.0,3422.5,2.2575]
[1719782689981,3.00699,3423.0,3422.7,0.06157372]
[1719782690181,3.00699,3423.0,3422.5,2.2575]
[1719782690403,3.00699,3423.0,3422.8,0.06152503]
[1719782690608,3.00699,3423.0,3422.5,2.2575]
[1719782690815,3.00699,3423.0,3422.9,0.06147635]
[1719782691113,3.00699,3423.0,3422.5,2.2575]
[1719782691667,3.00699,3423.0,3422.6,0.06162241]
[1719782692110,3.00699,3423.0,3422.5,2.2575]
[1719782692510,3.00699,3423.0,3422.7,0.06157372]
[1719782692706,3.00699,3423.0,3422.6,0.06162241]
[1719782693012,3.00699,3423.0,3422.5,2.2575]
[1719782693206,3.00699,3423.0,3422.7,0.06157372]
[1719782693412,3.00699,3423.0,3422.5,2.2575]
[1719782693702,3.00699,3423.0,3422.8,0.06152503]
[1719782693906,3.00699,3423.0,3422.5,2.2575]
[1719782694413,3.00699,3423.0,3422.6,0.06162241]
[1719782694639,3.00699,3423.0,3422.5,2.2575]
[1719782694770,3.00699,3423.0,3422.6,0.30975]
[1719782694970,3.00699,3423.0,3422.6,0.06162241]
[1719782695212,3.00699,3423.0,3422.5,2.2575]
[1719782695511,3.00699,3423.0,3422.7,0.06157372]
[1719782695814,3.00699,3423.0,3422.5,2.2575]
[1719782696012,3.00699,3423.0,3422.8,0.06152503]
[1719782696215,3.00699,3423.0,3422.5,2.2575]
[1719782696417,3.00699,3423.0,3422.9,0.06147635]
[1719782696615,3.00699,3423.0,3422.4,0.84]
[1719782696823,3.00699,3423.0,3422.9,0.06147635]
[1719782697044,3.00699,3423.0,3422.4,0.84]
[1719782697331,3.00699,3423.0,3422.9,0.06147635]
[1719782697528,3.00699,3423.0,3422.4,0.84]
[1719782697691,3.00699,3423.0,3422.5,0.0616711]
[1719782697883,3.00699,3423.0,3422.9,0.06147635]
[1719782698078,3.00699,3423.0,3422.4,0.84]
[1719782698283,3.00699,3423.0,3422.9,0.06147635]
[1719782698490,3.00699,3423.0,3422.4,0.84]
[1719782698710,3.00699,3423.0,3422.9,0.06147635]
[1719782698911,3.00699,3423.0,3422.4,0.84]
[1719782699517,3.00699,3423.0,3422.5,0.0616711]
[1719782700539,2.3868,3422.9,3422.5,0.0616711]
[1719782700704,2.3868,3422.9,3422.0,2.3536]
[1719782700705,2.3868,3422.9,3422.3,0.84]
[1719782701038,3.0,3422.9,3422.4,0.06171048]
[1719782701243,2.46318484,3422.8,3422.4,0.06171048]
[1719782701546,5.2519,3422.8,3421.9,0.84]
[1719782701697,2.2519,3422.8,3421.9,1.15936]
[1719782701899,2.2519,3422.8,3422.5,0.06166178]
[1719782702147,3.0919,3422.8,3421.4,2.4999]
[1719782702353,3.0,3422.7,3421.7,0.84]
[1719782702644,5.2519,3422.7,3421.7,0.84]
[1719782702794,2.4693,3422.5,3421.8,0.06200272]
[1719782702998,5.4693,3422.5,3421.8,0.06200272]
[1719782704354,2.4693,3422.5,3421.8,0.06200272]
[1719782706003,3.00699,3423.0,3422.4,0.84]
[1719782706202,3.0,3422.9,3422.4,0.84]
[1719782706402,3.0,3422.9,3422.5,0.06170054]
[1719782713019,2.4955,3422.8,3422.5,0.06170054]
[1719782714725,3.0,3422.9,3422.5,0.06170054]
[1719782720545,3.0,3422.9,3422.2,0.89843568]
[1719782720945,3.0,3422.9,3422.3,0.06176927]
[1719782728535,3.0,3422.9,3422.3,2.48296927]
[1719782728932,3.0,3422.9,3422.3,2.4212]
[1719782729145,3.0,3422.9,3422.3,2.47963554]
[1719782729350,3.0,3422.9,3422.3,2.4796345]
[1719782729533,3.0,3422.9,3422.3,2.4212]
[1719782742534,3.0,3422.9,3422.4,0.84]
[1719782746938,3.0,3422.9,3422.3,3.2612]
[1719782751727,3.0,3422.9,3422.4,0.06175388]
[1719782751925,3.0,3422.9,3422.3,3.2612]
[1719782756462,3.0,3422.9,3422.3,0.84]
[1719782756670,2.2674,3422.8,3422.3,0.84]
[1719782757840,2.2674,3422.8,3422.2,0.05843578]
[1719782758041,2.2674,3422.8,3422.2,0.89843578]
[1719782758442,2.2674,3422.8,3422.3,0.06180258]
[1719782758644,2.2674,3422.8,3422.2,0.89843578]
[1719782758962,2.2674,3422.8,3422.3,0.06180258]
[1719782759465,2.2674,3422.8,3422.2,0.89843578]
[1719782759671,2.2674,3422.8,3422.3,0.06180258]
[1719782759852,2.2674,3422.8,3422.2,0.89843578]
[1719782760051,2.2674,3422.8,3422.3,0.06180258]
[1719782760252,2.2674,3422.8,3422.2,0.89843578]
[1719782760452,2.2674,3422.8,3422.3,0.06180258]
[1719782760653,2.2674,3422.8,3422.2,0.89843578]
[1719782760850,2.2674,3422.8,3422.3,0.06180258]
[1719782761053,2.2674,3422.8,3422.2,0.89843578]
[1719782761292,2.2674,3422.8,3422.3,0.06180258]
[1719782761788,2.2674,3422.8,3422.2,0.89843578]
[1719782761989,2.2674,3422.8,3422.2,1.22715936]
[1719782762159,2.2674,3422.8,3422.3,0.06180258]
[1719782762774,2.2674,3422.8,3422.2,0.05843578]
[1719782763189,2.2674,3422.8,3422.3,0.06180258]
[1719782763479,2.2674,3422.8,3422.2,0.05843578]
[1719782763682,2.2674,3422.8,3422.3,0.06180258]
[1719782763884,2.2674,3422.8,3422.2,0.05843578]
[1719782764085,2.2674,3422.8,3422.3,0.06182353]
[1719782764249,2.2674,3422.8,3422.2,0.05843578]
[1719782764448,2.2674,3422.8,3422.3,0.06182353]
[1719782764778,2.2674,3422.8,3422.2,0.05843578]
[1719782765095,2.2674,3422.8,3422.3,0.06182353]
[1719782765520,2.2674,3422.8,3422.2,0.05843578]
[1719782766121,3.84,3422.9,3422.3,0.06182353]
[1719782766818,3.84,3422.9,3422.2,0.05843578]
[1719782767197,3.84,3422.9,3422.3,0.06182353]
[1719782767581,3.84,3422.9,3422.2,0.05843578]
[1719782767916,3.84,3422.9,3422.3,0.06182353]
[1719782768321,3.84,3422.9,3422.2,0.05843578]
[1719782768695,3.84,3422.9,3422.3,0.06182353]
[1719782769218,3.84,3422.9,3422.2,0.05843578]
[1719782769521,3.84,3422.9,3422.2,0.30315936]
[1719782769840,3.84,3422.9,3422.3,0.06182353]
[1719782774889,3.0,3422.9,3422.3,0.06182353]
[1719782775716,3.0,3422.9,3422.2,0.30315936]
[1719782781656,3.0,3422.9,3422.2,0.24472358]
[1719782782451,0.84,3422.8,3422.2,0.24472358]
[1719782789951,0.84,3422.8,3422.3,0.06181733]
[1719782790561,0.84,3422.8,3422.1,2.44723616]
[1719782790779,0.84,3422.8,3422.2,0.24472362]
[1719782790974,0.84,3422.8,3422.2,0.30658965]
[1719782791596,3.0,3422.9,3422.2,0.30658965]
[1719782791801,3.84,3422.9,3422.2,0.30658965]
[1719782792814,3.0,3422.9,3422.2,0.30658965]
[1719782792980,3.84,3422.9,3422.2,0.30658965]
[1719782796585,3.0,3422.9,3422.2,0.30658965]
[1719782805520,3.0,3422.9,3422.2,0.06186603]
[1719782821127,3.84,3422.9,3422.2,0.06186603]
[1719782828931,3.0,3422.9,3422.2,0.06186603]
[1719782835671,2.95,3422.9,3422.2,0.06186603]
[1719782836838,2.95,3422.9,3422.3,2.2618]
[1719782837197,2.95,3422.9,3422.4,0.06176708]
[1719782837646,2.95,3422.9,3422.3,2.2618]
[1719782844294,2.95,3422.9,3422.4,0.06176708]
[1719782844451,2.95,3422.9,3422.3,2.2618]
[1719782850561,2.95,3422.9,3422.4,0.06176318]
[1719782850798,2.95,3422.9,3422.3,2.2618]
[1719782851177,2.95,3422.9,3422.4,0.06176318]
[1719782851566,2.95,3422.9,3422.3,2.48798]
[1719782851791,2.95,3422.9,3422.4,0.06176318]
[1719782852394,2.95,3422.9,3422.3,2.48798]
[1719782853002,2.95,3422.9,3422.4,0.06176318]
[1719782853358,2.95,3422.9,3422.3,2.48798]
[1719782853558,2.95,3422.9,3422.4,0.06176318]
[1719782853806,2.95,3422.9,3422.3,2.48798]
[1719782854402,2.95,3422.9,3422.4,0.06176318]
[1719782854859,2.95,3422.9,3422.3,2.48798]
[1719782855310,2.95,3422.9,3422.4,0.06176318]
[1719782855662,2.95,3422.9,3422.3,2.48798]
[1719782855969,2.95,3422.9,3422.4,0.06176318]
[1719782856172,3.25558754,3422.9,3422.3,2.48798]
[1719782856378,3.25558754,3422.9,3422.4,0.06176318]
[1719782856608,3.25558754,3422.9,3422.3,2.48798]
[1719782856816,2.95,3422.9,3422.3,2.48798]
[1719782857188,2.95,3422.9,3422.4,0.06176088]
[1719782857487,2.95,3422.9,3422.3,2.48798]
[1719782857898,2.95,3422.9,3422.4,0.06176088]
[1719782858298,2.95,3422.9,3422.3,2.48798]
[1719782858680,2.95,3422.9,3422.4,0.06176088]
[1719782858876,2.95,3422.9,3422.3,2.2618]
[1719782859292,2.95,3422.9,3422.4,0.06176088]
[1719782859497,2.95,3422.9,3422.3,2.2618]
[1719782859973,2.95,3422.9,3422.4,0.06176088]
[1719782860205,2.95,3422.9,3422.3,2.2618]
[1719782860572,2.95,3422.9,3422.4,0.06176088]
[1719782860882,2.95,3422.9,3422.3,2.2618]
[1719782861390,2.95,3422.9,3422.4,0.06176088]
[1719782861703,2.95,3422.9,3422.3,2.2618]
[1719782862089,2.95,3422.9,3422.4,0.06176088]
[1719782862466,2.95,3422.9,3422.3,2.2618]
[1719782862999,2.95,3422.9,3422.4,0.06176088]
[1719782863369,2.95,3422.9,3422.3,2.2618]
[1719782863707,2.95,3422.9,3422.4,0.06176088]
[1719782864064,2.95,3422.9,3422.3,2.2618]
[1719782864526,2.95,3422.9,3422.4,0.06176088]
[1719782865017,2.95,3422.9,3422.3,2.2618]
[1719782865508,2.95,3422.9,3422.4,0.06176088]
[1719782866568,2.95,3422.9,3422.3,2.2618]
[1719782866770,2.95,3422.9,3422.4,0.06176088]
[1719782866969,2.95,3422.9,3422.3,2.2618]
[1719782867207,2.95,3422.9,3422.4,0.06176088]